bitfinex/quotes_ETHUSD_20241124
["timestamp","ask_amount","ask_price","bid_price","bid_amount"]
[1732470315095,3.02756,3303.0,3302.4,1.51404]
[1732470315258,3.02756,3303.0,3302.7,0.06998448]
[1732470315607,3.83224,3303.2,3302.5,1.514]
[1732470315756,6.83206,3303.4,3302.7,1.51389]
[1732470315956,0.8048,3304.2,3302.8,1.51385]
[1732470316193,3.02715,3303.5,3302.9,1.51381]
[1732470316420,3.02694,3303.7,3302.9,1.51381]
[1732470316583,3.02734,3303.3,3303.0,0.0696548]
[1732470316760,3.02712,3303.5,3303.0,0.0696548]
[1732470316961,6.05429,3303.5,3302.8,1.51383]
[1732470317286,3.02725,3303.4,3303.1,0.06950545]
[1732470317784,3.02725,3303.4,3302.9,1.51381]
[1732470317785,3.02725,3303.4,3303.2,0.06941277]
[1732470317962,3.027,3303.6,3302.9,1.51381]
[1732470318275,3.410104,3303.7,3303.3,0.06941277]
[1732470318609,3.027,3303.6,3303.0,1.51377]
[1732470318768,3.02693,3303.7,3303.1,1.51371]
[1732470319112,3.02675,3303.9,3303.3,1.51362]
[1732470319404,3.02684,3303.8,3303.2,1.51367]
[1732470319575,3.02684,3303.8,3303.4,0.06943851]
[1732470319773,3.02684,3303.8,3303.3,0.06936128]
[1732470319991,3.02684,3303.8,3303.2,1.51367]
[1732470320303,3.02684,3303.8,3303.4,0.06936128]
[1732470320514,3.02688,3303.8,3303.1,1.51372]
[1732470320804,3.02688,3303.8,3303.1,1.51369]
[1732470321049,3.02672,3303.9,3303.3,1.5136]
[1732470321308,0.4144001,3304.0,3303.5,1.51353]
[1732470321606,6.02654,3304.1,3303.4,0.06924288]
[1732470321794,3.0,3304.2,3303.6,1.58174394]
[1732470322014,3.02645,3304.2,3303.7,1.51344]
[1732470322176,3.02645,3304.2,3303.7,0.06823335]
[1732470322391,3.02667,3304.0,3303.7,0.06823335]
[1732470322577,3.02667,3304.0,3303.1,0.38437721]
[1732470322578,3.02667,3304.0,3303.4,1.51358]
[1732470322778,3.02667,3304.0,3303.8,0.06809952]
[1732470323228,3.02667,3304.0,3303.4,1.51358]
[1732470323375,3.02667,3304.0,3303.9,0.06810467]
[1732470323584,3.02675,3303.9,3303.4,1.51358]
[1732470323784,3.02663,3304.1,3303.4,1.51358]
[1732470323982,3.02669,3304.0,3303.5,0.06810467]
[1732470324184,0.38048,3304.2,3303.5,0.06810467]
[1732470324385,3.027,3303.6,3303.5,0.06810467]
[1732470324710,3.02728,3303.3,3302.7,1.51389]
[1732470324882,3.02728,3303.3,3302.6,1.51392]
[1732470325299,3.02751,3303.1,3302.5,1.51399]
[1732470325609,3.84868,3303.3,3302.4,1.51405]
[1732470325610,3.84868,3303.3,3302.6,1.51394]
[1732470325838,3.02728,3303.3,3302.7,1.5139]
[1732470326034,3.02728,3303.3,3302.8,1.51385]
[1732470326414,0.8214,3303.6,3300.7,0.1]
[1732470326415,3.02787,3302.7,3300.7,0.1]
[1732470326614,0.302787,3302.6,3301.4,1.5145]
[1732470326807,0.8214,3302.8,3301.4,1.5145]
[1732470326808,3.02818,3302.4,3301.8,1.51429]
[1732470327046,3.02818,3302.4,3301.9,0.21253512]
[1732470328393,6.05591,3302.6,3301.9,0.21253512]
[1732470328532,6.05591,3302.6,3301.9,1.72679512]
[1732470328716,3.02801,3302.5,3301.9,1.72679512]
[1732470329321,3.02827,3302.3,3301.7,0.61106124]
[1732470329662,0.8214,3302.2,3301.2,1.51457]
[1732470329811,6.05738,3301.8,3301.6,0.59945948]
[1732470330011,6.05738,3301.8,3301.0,1.51469]
[1732470330012,3.02846,3302.1,3300.8,1.51476]
[1732470330259,3.02846,3302.1,3300.9,0.151476]
[1732470330260,3.384986,3302.0,3300.9,0.151476]
[1732470330457,3.02888,3301.6,3300.9,0.06893887]
[1732470330667,3.02902,3301.4,3300.9,0.06893887]
[1732470330818,3.02902,3301.4,3300.8,1.51475]
[1732470330819,3.02902,3301.4,3300.8,2.11003775]
[1732470331017,0.8214,3301.9,3300.8,2.11003775]
[1732470331018,3.02885,3301.6,3301.0,0.06893887]
[1732470331277,3.02885,3301.6,3300.9,0.21100378]
[1732470331549,3.02885,3301.6,3301.0,1.51465]
[1732470331726,3.02866,3301.8,3301.1,0.06893887]
[1732470331936,3.0289,3301.6,3301.1,0.06893887]
[1732470332356,3.02866,3301.8,3301.1,1.58354887]
[1732470332567,3.02874,3301.7,3301.1,1.58354887]
[1732470332713,3.02883,3301.6,3301.1,0.06893887]
[1732470332913,3.02866,3301.8,3301.2,2.06457]
[1732470333161,3.02866,3301.8,3301.3,0.07004637]
[1732470333359,3.02874,3301.7,3301.3,0.07004637]
[1732470333663,3.02874,3301.7,3301.2,0.55]
[1732470333664,3.02874,3301.7,3301.1,0.55]
[1732470333850,3.02874,3301.7,3301.4,0.07004637]
[1732470334045,3.02853,3302.0,3301.2,1.51455]
[1732470334273,3.02825,3302.3,3301.6,0.55]
[1732470334428,3.02774,3302.8,3301.6,0.55]
[1732470334429,0.8214,3302.8,3301.6,0.55]
[1732470334632,3.02796,3302.6,3301.7,0.07004637]
[1732470334835,3.02796,3302.6,3301.7,1.58437637]
[1732470335131,3.02816,3302.4,3301.7,1.58437637]
[1732470335332,3.02819,3302.3,3301.7,1.58437637]
[1732470335850,3.02819,3302.3,3301.7,0.07004637]
[1732470336152,3.02847,3302.0,3301.7,0.07004637]
[1732470336349,3.02862,3301.9,3301.7,0.07004637]
[1732470336566,3.02862,3301.9,3301.3,1.51453]
[1732470336731,3.02862,3301.9,3301.8,0.0702164]
[1732470336930,3.02862,3301.9,3301.3,1.51453]
[1732470337135,3.02862,3301.9,3301.4,0.0702164]
[1732470337345,3.02869,3301.8,3301.4,0.0702164]
[1732470337561,3.84981,3302.1,3301.3,1.51455]
[1732470337871,8.35761212,3303.0,3300.9,2.33002212]
[1732470337872,3.02834,3302.2,3301.4,1.58473732]
[1732470338031,3.02843,3302.1,3301.4,1.58473732]
[1732470338363,3.02834,3302.2,3301.4,1.58473732]
[1732470338364,3.02849,3302.0,3301.4,1.58473732]
[1732470338665,3.02834,3302.2,3301.6,1.51438]
[1732470339178,3.02834,3302.2,3301.7,0.07024732]
[1732470339331,3.84953,3302.4,3301.7,0.07024732]
[1732470339526,3.02801,3302.5,3301.7,0.07024732]
[1732470339763,3.02801,3302.5,3301.9,1.51427]
[1732470340070,3.84917,3302.8,3301.7,0.2317408]
[1732470340071,3.02783,3302.7,3302.0,1.5142]
[1732470340363,3.02783,3302.7,3302.0,0.07012365]
[1732470340548,3.02785,3302.7,3302.0,1.58432365]
[1732470340763,3.02767,3302.9,3302.2,1.51411]
[1732470340963,3.02767,3302.9,3302.0,1.74275601]
[1732470340964,3.02782,3302.7,3302.1,1.51415]
[1732470341166,3.02782,3302.7,3302.3,0.06995879]
[1732470341481,3.02782,3302.7,3302.1,1.51415]
[1732470341646,0.8214,3303.1,3302.4,0.06995879]
[1732470341647,3.02774,3302.8,3302.4,0.06995879]
[1732470341840,3.02774,3302.8,3302.2,1.51413]
[1732470342140,3.02749,3303.1,3302.3,0.18328082]
[1732470342349,3.0276,3303.0,3302.4,0.06991243]
[1732470342983,3.02766,3302.9,3302.4,0.06991243]
[1732470343278,3.02788,3302.7,3302.4,0.06991243]
[1732470343372,6.05537,3302.9,3302.4,0.06991243]
[1732470343549,3.84872,3303.3,3302.4,0.06991243]
[1732470343753,3.84872,3303.3,3302.3,1.51407]
[1732470343754,3.02772,3302.9,3302.3,1.51407]
[1732470343987,3.02772,3302.9,3302.5,0.06904688]
[1732470344142,3.02753,3303.1,3302.4,1.58309778]
[1732470344596,3.02753,3303.1,3302.4,0.06907778]
[1732470344747,3.02753,3303.1,3302.4,1.58310778]
[1732470344937,3.02765,3302.9,3302.4,0.06907778]
[1732470346246,3.02731,3303.3,3302.5,0.55]
[1732470346445,3.02738,3303.2,3302.5,2.06399]
[1732470346799,3.02748,3303.1,3302.6,0.06909838]
[1732470347418,3.02731,3303.3,3302.6,1.58304838]
[1732470347683,3.02736,3303.2,3302.6,1.58304838]
[1732470348389,3.02719,3303.4,3302.6,0.06909838]
[1732470348553,0.8155,3303.6,3302.7,1.90181044]
[1732470348884,4.49853212,3303.8,3303.1,0.55]
[1732470349090,3.02682,3303.8,3303.2,1.51367]
[1732470349375,3.02691,3303.7,3303.2,1.58262933]
[1732470349781,0.8155,3304.2,3303.2,1.94723926]
[1732470349782,3.02666,3304.0,3303.2,1.94723926]
[1732470349972,3.02682,3303.8,3303.2,1.58259933]
[1732470351386,3.02666,3304.0,3303.4,1.51355]
[1732470351552,3.02666,3304.0,3303.3,1.51361]
[1732470351749,3.02666,3304.0,3303.4,1.58232911]
[1732470352053,3.02645,3304.2,3303.6,1.5135]
[1732470352380,3.02645,3304.2,3303.7,0.06862982]
[1732470353145,3.02681,3303.8,3303.7,0.06862982]
[1732470353387,0.302645,3304.2,3303.1,0.55]
[1732470353388,3.02663,3304.0,3303.1,0.55]
[1732470353616,3.02649,3304.2,3303.7,0.06862982]
[1732470353886,3.02654,3304.1,3303.5,1.51353]
[1732470354178,3.02665,3304.0,3303.5,1.51353]
[1732470354380,3.02665,3304.0,3303.6,0.06862982]
[1732470354769,3.02649,3304.2,3303.6,0.06862982]
[1732470354974,3.02631,3304.4,3303.7,1.51343]
[1732470355190,3.02644,3304.3,3303.7,1.51343]
[1732470355410,3.02665,3304.0,3303.3,1.51359]
[1732470355554,3.02631,3304.4,3303.8,0.06862982]
[1732470355887,3.02637,3304.3,3303.8,1.5134]
[1732470356271,3.02612,3304.6,3303.9,0.06804292]
[1732470356449,3.02633,3304.4,3303.9,0.06804292]
[1732470356661,3.02633,3304.4,3303.7,0.60231351]
[1732470356662,3.02611,3304.6,3303.7,0.63257991]
[1732470356854,3.02611,3304.6,3303.8,1.5134]
[1732470357161,3.02611,3304.6,3303.9,1.51336]
[1732470357368,3.02628,3304.4,3304.0,0.06781131]
[1732470357785,3.02628,3304.4,3303.7,0.60231351]
[1732470357966,3.02628,3304.4,3303.6,1.51349]
[1732470357967,3.02659,3304.1,3303.4,1.51358]
[1732470358176,3.02686,3303.8,3302.9,1.51378]
[1732470358360,0.8015,3304.3,3303.2,0.61875233]
[1732470358361,3.02692,3303.7,3303.2,0.61875233]
[1732470358983,3.02692,3303.7,3303.1,1.51372]
[1732470359192,3.02692,3303.7,3302.5,1.51399]
[1732470359193,3.02733,3303.3,3303.0,0.59995648]
[1732470359512,3.02709,3303.5,3303.0,0.59995648]
[1732470359653,3.02709,3303.5,3302.8,1.51385]
[1732470359654,3.02718,3303.4,3302.8,1.51385]
[1732470360048,3.82853,3303.6,3302.9,1.51381]
[1732470360271,0.8015,3303.9,3302.9,1.51381]
[1732470360465,3.0272,3303.4,3302.9,1.51381]
[1732470360672,3.027,3303.6,3302.9,1.87663608]
[1732470360878,3.02684,3303.8,3302.9,1.87663608]
[1732470360879,3.02684,3303.8,3303.1,1.51368]
[1732470361120,3.02701,3303.6,3303.0,2.06377]
[1732470361469,3.02701,3303.6,3303.1,0.06808925]
[1732470362104,3.02701,3303.6,3303.1,1.58180925]
[1732470362284,0.8015,3303.9,3303.1,1.58180925]
[1732470362285,3.02695,3303.7,3303.1,3.09549925]
[1732470362460,3.02695,3303.7,3303.1,1.58177925]
[1732470362803,3.027,3303.6,3303.1,1.96748168]
[1732470362957,3.02729,3303.3,3303.1,0.06808925]
[1732470363380,3.0271,3303.5,3303.1,0.06808925]
[1732470363906,3.02728,3303.3,3303.1,0.06808925]
[1732470364115,3.330088,3303.2,3303.1,0.06808925]
[1732470364297,3.02736,3303.2,3302.6,2.13145483]
[1732470364556,3.02736,3303.2,3303.1,0.06809954]
[1732470364702,3.02728,3303.3,3302.3,1.51407]
[1732470364703,3.02769,3302.9,3302.3,1.51407]
[1732470364998,3.02769,3302.9,3302.3,0.151407]
[1732470365204,3.02798,3302.6,3301.9,1.51423]
[1732470365519,3.02806,3302.5,3302.2,0.5918762]
[1732470366285,3.81458,3302.7,3302.2,0.5918762]
[1732470366492,3.02788,3302.7,3302.2,0.5918762]
[1732470366677,3.02788,3302.7,3302.2,0.80248682]
[1732470367112,3.02794,3302.6,3302.2,0.80248682]
[1732470368107,3.0281,3302.4,3302.2,0.80248682]
[1732470368416,3.02806,3302.5,3301.8,1.51428]
[1732470368633,3.02794,3302.6,3302.1,0.55]
[1732470368789,3.02783,3302.7,3302.1,2.06418]
[1732470369620,3.02783,3302.7,3302.1,0.55]
[1732470369812,3.02773,3302.8,3302.2,0.26615262]
[1732470370026,0.7596,3303.0,3302.2,0.26615262]
[1732470370318,0.7596,3303.0,3302.1,0.55]
[1732470370319,3.02803,3302.5,3302.1,0.55]
[1732470370677,3.028,3302.6,3302.1,0.55]
[1732470371318,3.02775,3302.8,3302.1,0.55]
[1732470371652,3.02791,3302.7,3302.1,2.06418]
[1732470372186,3.02775,3302.8,3302.1,2.06418]
[1732470372532,3.02775,3302.8,3302.1,0.55]
[1732470372533,3.02779,3302.8,3302.1,0.55]
[1732470372679,3.02787,3302.7,3302.1,2.34548142]
[1732470373321,3.02787,3302.7,3301.7,0.0302805]
[1732470373322,2.3356421,3302.6,3301.7,0.0302805]
[1732470373625,3.02879,3301.7,3301.4,0.59231805]
[1732470374124,3.0287,3301.8,3301.5,0.06225596]
[1732470374281,3.02883,3301.6,3301.5,0.06225596]
[1732470374520,3.0287,3301.8,3301.5,0.06225596]
[1732470374794,3.02856,3301.9,3301.5,0.06225596]
[1732470375791,3.02821,3302.3,3301.6,0.55]
[1732470376112,3.02787,3302.7,3302.0,0.55]
[1732470376324,3.02783,3302.7,3302.1,1.720575]
[1732470376691,3.02767,3302.9,3302.2,1.57684358]
[1732470376903,3.02793,3302.6,3302.2,0.06270358]
[1732470377095,3.02819,3302.3,3302.2,0.06270358]
[1732470377502,3.02819,3302.3,3301.6,1.51438]
[1732470377700,3.02819,3302.3,3301.7,1.51436]
[1732470377901,3.02819,3302.3,3301.7,4.57676]
[1732470378183,3.02825,3302.3,3301.8,0.609114]
[1732470378404,3.02802,3302.5,3301.7,0.0624]
[1732470378716,3.02777,3302.8,3302.1,1.51415]
[1732470379082,3.02777,3302.8,3302.2,1.57651456]
[1732470379793,3.78717,3303.0,3302.2,1.57651456]
[1732470380021,3.02757,3303.0,3302.4,1.51402]
[1732470380486,3.0276,3303.0,3302.5,0.06237942]
[1732470380825,0.7596,3303.2,3302.2,1.51413]
[1732470381118,3.02781,3302.8,3302.6,0.06237942]
[1732470381336,6.05519,3303.0,3302.3,2.06408]
[1732470381521,3.02758,3303.0,3302.7,0.06220967]
[1732470381824,3.02758,3303.0,3302.8,0.06220967]
[1732470382066,6.0552,3303.0,3302.8,0.06220967]
[1732470382231,3.02755,3303.0,3302.4,1.51404]
[1732470382532,3.0274,3303.2,3302.4,1.51401]
[1732470382725,3.02757,3303.0,3302.5,0.06221996]
[1732470383234,3.02721,3303.4,3302.5,0.06221996]
[1732470383528,3.78646,3303.8,3303.1,1.5137]
[1732470383711,3.02692,3303.7,3303.1,1.5137]
[1732470383924,0.7596,3303.8,3303.2,0.06210168]
[1732470384096,3.02659,3304.1,3303.2,0.24995216]
[1732470384286,3.02659,3304.1,3303.4,1.51359]
[1732470384515,3.02673,3303.9,3303.2,0.55]
[1732470384744,3.02664,3304.0,3303.5,0.06210168]
[1732470384905,3.02664,3304.0,3303.4,0.55]
[1732470385102,3.02664,3304.0,3303.6,0.06210168]
[1732470385292,3.02664,3304.0,3303.4,0.55]
[1732470385293,3.02689,3303.8,3303.2,0.55]
[1732470385499,3.02681,3303.8,3303.7,0.06210168]
[1732470385724,3.02699,3303.7,3303.1,2.06372]
[1732470385948,3.02692,3303.7,3303.1,2.421443]
[1732470386095,3.027,3303.6,3303.2,0.06210168]
[1732470386572,3.02709,3303.5,3302.9,2.1127229]
[1732470386617,3.027,3303.6,3302.9,2.1127229]
[1732470386618,3.02666,3304.0,3303.3,1.57573168]
[1732470386927,3.02672,3303.9,3303.3,1.51363]
[1732470387151,3.02672,3303.9,3303.4,0.06210168]
[1732470387642,3.02647,3304.2,3303.5,1.51351]
[1732470387813,3.02627,3304.4,3303.8,1.5134]
[1732470388132,3.02632,3304.4,3303.7,0.55]
[1732470388434,3.02618,3304.5,3303.9,1.51333]
[1732470389031,3.02618,3304.5,3304.0,0.06166975]
[1732470389234,3.02615,3304.6,3304.0,1.57497975]
[1732470389592,3.83842,3304.9,3304.1,1.51326]
[1732470389723,3.83842,3304.9,3304.3,1.51317]
[1732470389724,3.02582,3304.9,3304.3,1.51317]
[1732470389896,3.02595,3304.8,3304.3,0.55]
[1732470390104,3.02595,3304.8,3304.4,0.06166975]
[1732470390729,3.02612,3304.6,3304.4,0.06166975]
[1732470391053,3.02617,3304.5,3304.4,0.06166975]
[1732470391396,3.02617,3304.5,3303.6,1.51348]
[1732470391593,3.02617,3304.5,3303.7,1.51342]
[1732470391824,3.02654,3304.1,3303.8,0.21266226]
[1732470392034,3.02654,3304.1,3303.8,0.06132026]
[1732470392433,3.02636,3304.3,3303.6,0.55]
[1732470392648,6.0528,3304.3,3303.9,0.06143845]
[1732470392798,3.02651,3304.2,3303.6,0.701351]
[1732470393002,3.02651,3304.2,3304.0,0.06143845]
[1732470393335,3.02651,3304.2,3303.6,0.701351]
[1732470393643,3.02681,3303.8,3303.1,1.51372]
[1732470393848,3.0,3304.7,3302.9,1.5138]
[1732470393849,3.02693,3303.7,3302.9,1.5138]
[1732470394094,0.8126,3304.0,3302.7,1.51389]
[1732470394239,3.02708,3303.6,3302.8,1.665219]
[1732470394410,3.0271,3303.5,3302.9,1.51381]
[1732470394612,3.02706,3303.6,3302.9,0.3179089]
[1732470394919,3.83927,3304.0,3302.6,1.51391]
[1732470395116,3.02721,3303.4,3302.8,1.51386]
[1732470395308,6.05447,3303.4,3302.7,0.55]
[1732470395522,6.05447,3303.4,3302.7,0.90779]
[1732470395818,6.05447,3303.4,3302.7,2.42168]
[1732470395999,0.7599,3303.5,3302.7,1.51388]
[1732470396203,0.7599,3303.5,3302.6,0.55]
[1732470396502,3.02733,3303.3,3302.8,0.55]
[1732470396962,3.02727,3303.4,3302.7,0.55]
[1732470397156,3.02733,3303.3,3302.7,0.55]
[1732470397355,0.7599,3303.5,3302.7,0.756394]
[1732470397856,3.02733,3303.3,3302.7,0.756394]
[1732470398064,3.02738,3303.2,3302.7,0.756394]
[1732470398259,3.02738,3303.2,3302.5,0.55]
[1732470398425,3.02738,3303.2,3302.5,2.064]
[1732470398760,3.02747,3303.1,3302.7,0.55]
[1732470399054,6.05445,3303.4,3302.5,0.55]
[1732470399239,3.02721,3303.4,3302.7,0.55]
[1732470399551,3.02751,3303.1,3302.7,0.55]
[1732470399750,3.02751,3303.1,3302.4,0.55]
[1732470400058,3.02751,3303.1,3302.4,0.76316296]
[1732470400214,3.02761,3303.0,3302.4,0.76316296]
[1732470400429,3.02751,3303.1,3302.1,2.06415]
[1732470400430,3.02775,3302.8,3302.1,2.06415]
[1732470400624,3.02775,3302.8,3302.1,5.06415]
[1732470400882,3.78738,3303.1,3302.2,1.51414]
[1732470401118,3.78738,3303.1,3302.4,0.55]
[1732470401461,3.02765,3302.9,3302.4,0.55]
[1732470401686,3.02765,3302.9,3302.1,1.1644667]
[1732470401848,3.02765,3302.9,3302.1,4.1644667]
[1732470402023,3.78739,3303.1,3302.3,0.55]
[1732470402221,3.02755,3303.0,3302.3,2.06409]
[1732470403364,3.02764,3302.9,3302.3,0.55]
[1732470403746,3.02757,3303.0,3302.4,0.06085232]
[1732470404257,3.02775,3302.8,3302.4,0.06085232]
[1732470404441,3.02757,3303.0,3302.4,0.06085232]
[1732470405440,0.7599,3303.4,3302.4,1.57489232]
[1732470405744,0.7599,3303.4,3302.4,1.78739055]
[1732470405745,3.02744,3303.2,3302.4,1.78739055]
[1732470405939,3.02722,3303.4,3302.5,0.55]
[1732470406140,3.02742,3303.2,3302.6,0.23373906]
[1732470406377,3.02742,3303.2,3302.7,0.06144872]
[1732470406586,0.7843,3303.7,3302.7,0.09172571]
[1732470406587,3.027,3303.6,3302.7,0.09172571]
[1732470406823,3.02724,3303.4,3302.7,1.8112765]
[1732470407899,3.02715,3303.5,3302.7,1.8112465]
[1732470408087,0.7843,3303.7,3302.7,1.8112465]
[1732470408088,3.02718,3303.4,3302.7,1.8112465]
[1732470408602,6.05445,3303.4,3302.7,1.8112465]
[1732470408763,3.02718,3303.4,3302.7,1.8112465]
[1732470409100,1.16273,3303.7,3302.9,2.06377]
[1732470409101,3.02696,3303.7,3302.9,2.06377]
[1732470409286,3.02715,3303.5,3302.9,0.55]
[1732470409997,3.02715,3303.5,3303.0,0.06144872]
[1732470410376,3.02745,3303.1,3303.0,0.06144872]
[1732470410562,3.02745,3303.1,3302.4,0.55]
[1732470410771,3.02755,3303.0,3302.6,0.55]
[1732470410969,3.02755,3303.0,3302.4,0.55]
[1732470411276,3.02755,3303.0,3302.5,0.06144872]
[1732470411695,3.02755,3303.0,3302.3,0.55]
[1732470411905,3.02766,3302.9,3302.6,0.06144872]
[1732470412073,3.02766,3302.9,3302.2,1.5141]
[1732470412074,3.02802,3302.5,3301.8,4.51432]
[1732470412309,3.02802,3302.5,3301.8,2.12235336]
[1732470412310,3.0281,3302.4,3301.8,2.12235336]
[1732470412945,3.02799,3302.6,3301.8,2.12235336]
[1732470413310,3.02799,3302.6,3301.9,0.21223534]
[1732470413559,0.7843,3302.7,3302.0,0.55]
[1732470413794,3.02773,3302.8,3302.1,0.52765053]
[1732470414048,3.02792,3302.6,3302.1,0.52765053]
[1732470414816,3.02792,3302.6,3302.0,0.55]
[1732470415955,0.7843,3303.0,3302.0,0.55]
[1732470416163,3.02803,3302.5,3302.0,0.55]
[1732470416461,3.81187,3303.0,3301.5,1.51443]
[1732470416660,3.02824,3302.3,3301.6,3.55]
[1732470416861,3.02824,3302.3,3301.6,0.55]
[1732470417029,3.02824,3302.3,3301.7,0.3017]
[1732470417368,3.02804,3302.5,3301.8,0.55]
[1732470417539,3.02812,3302.4,3301.9,0.56778811]
[1732470418264,3.02824,3302.3,3301.9,0.56778811]
[1732470418465,3.02824,3302.3,3301.8,0.55]
[1732470418668,6.05613,3302.5,3301.8,0.55]
[1732470418889,3.02812,3302.4,3301.8,0.55]
[1732470419032,3.02812,3302.4,3301.8,1.11779211]
[1732470420872,3.02838,3302.1,3301.8,0.55]
[1732470421076,3.02819,3302.3,3301.8,0.55]
[1732470421272,3.02829,3302.2,3301.8,0.55]
[1732470421472,3.02829,3302.2,3301.9,0.06204066]
[1732470422139,3.81241,3302.4,3301.9,0.06204066]
[1732470422140,3.02846,3302.0,3301.9,0.06204066]
[1732470422472,3.0286,3301.9,3301.6,0.55]
[1732470422686,6.05723,3301.9,3301.6,0.55]
[1732470422831,3.0286,3301.9,3301.7,0.06210238]
[1732470423148,3.02842,3302.1,3301.7,0.06210238]
[1732470423484,3.02823,3302.3,3301.7,0.06210238]
[1732470423485,3.02829,3302.2,3301.7,0.06210238]
[1732470423763,3.02829,3302.2,3301.7,0.33500182]
[1732470423978,3.02823,3302.3,3301.3,4.41202005]
[1732470423979,3.02838,3302.1,3301.3,4.41202005]
[1732470424217,3.02838,3302.1,3301.8,0.06004259]
[1732470424505,3.02751,3303.1,3302.4,1.51401]
[1732470424707,0.7843,3303.6,3302.6,1.51391]
[1732470424982,0.7843,3303.6,3302.8,1.51383]
[1732470424983,3.81135,3303.6,3302.8,1.51383]
[1732470425185,3.02722,3303.4,3302.5,0.03027507]
[1732470425498,2.33650878,3304.1,3302.2,2.33650878]
[1732470425499,3.02709,3303.5,3302.9,1.51379]
[1732470425662,3.0272,3303.4,3302.8,1.51386]
[1732470426003,3.02751,3303.1,3302.4,4.51404]
[1732470426201,3.02751,3303.1,3302.9,0.06017119]
[1732470426202,3.02755,3303.0,3302.9,0.06017119]
[1732470426363,3.0278,3302.8,3302.2,3.60195835]
[1732470426677,3.63334,3302.8,3302.3,0.06017119]
[1732470426899,3.02748,3303.1,3302.5,1.51397]
[1732470427210,3.02756,3303.0,3302.3,3.02815]
[1732470427421,0.682339,3303.1,3302.6,0.06017119]
[1732470427573,0.7685,3303.6,3302.7,0.06017119]
[1732470427778,3.0275,3303.1,3302.5,1.51397]
[1732470428024,3.0275,3303.1,3302.6,0.06017119]
[1732470428275,0.7685,3303.6,3302.6,0.06017119]
[1732470428480,3.79554,3303.6,3302.7,1.51388]
[1732470428715,3.79554,3303.6,3302.9,1.51378]
[1732470429012,3.02697,3303.7,3303.0,0.05886042]
[1732470429328,0.3,3303.8,3302.9,1.51381]
[1732470429522,3.02706,3303.6,3302.9,1.51381]
[1732470429723,3.02706,3303.6,3303.0,0.05886042]
[1732470430225,3.79529,3303.9,3303.0,1.57262042]
[1732470430575,3.02693,3303.7,3303.1,1.51369]
[1732470430817,0.302693,3303.6,3303.2,0.05874221]
[1732470431000,0.302693,3303.6,3303.1,1.51369]
[1732470431201,0.302693,3303.6,3303.2,0.05874221]
[1732470431403,0.302693,3303.6,3303.1,1.51369]
[1732470431725,0.302693,3303.6,3303.2,1.57242221]
[1732470431906,3.02681,3303.8,3303.2,1.57242221]
[1732470432226,3.02689,3303.8,3303.2,1.57241221]
[1732470432433,3.02697,3303.7,3303.2,0.05874221]
[1732470432584,0.302697,3303.6,3303.2,0.05874221]
[1732470432929,0.302697,3303.6,3303.1,1.51372]
[1732470433101,3.02718,3303.4,3303.3,0.05868054]
[1732470433274,0.7685,3303.5,3302.2,1.51412]
[1732470433474,0.4098207,3303.4,3302.8,1.51384]
[1732470433906,3.4370007,3303.4,3302.8,1.51384]
[1732470434136,0.4098207,3303.4,3302.9,0.05867541]
[1732470434290,0.4098207,3303.4,3303.0,1.51374]
[1732470434816,0.4098207,3303.4,3303.1,0.05867541]
[1732470435123,3.02704,3303.6,3303.1,0.05867541]
[1732470435324,3.02715,3303.5,3303.1,0.05867541]
[1732470435561,3.02704,3303.6,3303.1,0.05867541]
[1732470435793,3.02727,3303.3,3303.2,0.05867541]
[1732470435981,3.02719,3303.4,3302.4,2.11125052]
[1732470435982,0.8222,3303.2,3302.4,0.59723052]
[1732470436334,3.02789,3302.7,3302.5,0.0565699]
[1732470436613,3.330679,3302.7,3302.5,0.0565699]
[1732470436819,3.330679,3302.7,3302.6,0.05662637]
[1732470437034,3.02768,3302.9,3302.2,1.51414]
[1732470437185,6.05539,3302.9,3302.3,0.05662637]
[1732470437530,0.8222,3303.7,3302.3,0.05662637]
[1732470438027,3.02775,3302.8,3302.2,3.02822]
[1732470438186,0.605533,3302.8,3302.3,1.51406]
[1732470438382,3.0277,3302.9,3302.4,0.05662637]
[1732470438592,0.8222,3303.3,3302.4,0.05662637]
[1732470438893,3.02767,3302.9,3302.4,0.05662637]
[1732470439382,3.02788,3302.7,3302.4,0.05662637]
[1732470439580,3.02788,3302.7,3302.1,1.51416]
[1732470439581,3.02795,3302.6,3302.0,4.51423]
[1732470439824,3.02795,3302.6,3301.6,3.0]
[1732470439825,0.687803,3302.6,3302.1,0.05686253]
[1732470439990,3.02859,3301.9,3301.3,1.51454]
[1732470440420,3.02859,3301.9,3301.4,1.57136253]
[1732470440920,3.02839,3302.1,3301.5,0.05520095]
[1732470441096,0.8222,3302.2,3301.5,0.05520095]
[1732470441417,0.8222,3302.2,3301.6,1.5144]
[1732470441418,3.0284,3302.1,3301.6,1.5144]
[1732470441626,0.8222,3302.2,3301.7,0.05540128]
[1732470442215,3.02855,3302.0,3301.7,0.05540128]
[1732470442564,3.02855,3302.0,3301.4,1.51447]
[1732470442661,3.02855,3302.0,3301.8,0.05539614]
[1732470442962,3.02855,3302.0,3301.5,1.51445]
[1732470443158,3.85051,3302.2,3301.5,1.51445]
[1732470443327,3.02838,3302.1,3301.6,0.05539614]
[1732470443986,0.385051,3302.2,3301.6,1.56980614]
[1732470444257,3.0281,3302.4,3301.8,1.51428]
[1732470444470,3.0281,3302.4,3301.9,1.51427]
[1732470444761,3.0281,3302.4,3301.9,1.56972779]
[1732470444927,3.0281,3302.4,3301.9,0.05545779]
[1732470445129,3.02821,3302.3,3301.9,0.05545779]
[1732470445348,0.30281,3302.4,3301.9,1.51427]
[1732470445666,3.02799,3302.6,3302.1,1.51417]